Cogmind - Beta 16 @@@ ROGUE MODE // 2026.01.12 @ 18:46:54 Player: FR-13D Result: Destroyed by S-27 Virus with Autogun Performance ------------- Evolutions (6) 3000 Regions Visited (12) 2400 Robots Destroyed (127) 635 Value Destroyed (4208) 4208 Prototype IDs (33) 660 Alien Tech Used (0) 0 Bonus (290) 290 TOTAL SCORE: 11193 Bonus ------- High Alert Combat Kills 113 Follower Combat Kills 112 Entered Garrisons 200 Used RIF Installer 500 Friendly Fire -635 Cogmind --------- Core Integrity 0/1150 Matter 5/300 Energy 99/100 System Corruption 36% Temperature Cool (0) Movement Core (50) Location -4/Factory Parts ------- > --- POWER (2) -------- (None) > --- PROPULSION (5) --- (None) > --- UTILITY (10) ----- (None) > --- WEAPON (2) ------- (None) > --- INVENTORY (5) ---- Improved Cooling System Precision Energy Filter Cooled Proton Cannon Improved Plasma Cutter Peak State ------------ > --- POWER ------------ Cold Fusion Reactor Light Antimatter Reactor > --- PROPULSION ------- Improved Heavy Treads Wheel Armored Wheel Armored Wheel > --- UTILITY ---------- Improved Cooling System High-capacity Storage Unit Advanced Signal Interpreter Advanced Terrain Scanner Advanced Targeting Computer Transmission Jammer Improved Heavy Armor Plating Graphene Brace Long-range Tractor Beam > --- WEAPON ----------- Compact Tesla Bomb Launcher Scatter Rocket Array > --- INVENTORY -------- Hybrid Fission Core Improved Heavy Treads Improved Heavy Treads Matter Compressor Advanced Terrain Scan Processor Precision Energy Filter Particle Charger Improved Transmission Jammer ECM Suite ECM Suite Improved Medium Armor Plating Layered Medium Armor Plating Cooled Proton Cannon Heavy Shock Bomb Launcher Micro-nuke Launcher Improved Plasma Cutter Power Maul [Rating: 101] Favorites ----------- Power Cooled Ion Engine Engine Cooled Ion Engine Power Core Hybrid Fission Core Reactor Light Antimatter Reactor Propulsion Wheel Treads Light Treads Wheel Wheel Utility High-capacity Storage Unit Device Transmission Jammer Storage High-capacity Storage Unit Processor Improved Signal Interpreter Protection Hardened Light Armor Plating Weapon Rocket Launcher Energy Gun Thermic Laser Energy Cannon Heavy Plasma Cannon Ballistic Gun Light Assault Rifle Ballistic Cannon Light Cannon Launcher Rocket Launcher Special Weapon Plasma Cutter Impact Weapon Power Maul Slashing Weapon Ionic Axe Build | -11 -10 -10 -9 -9 -9 -8 -8 -8 -7 -6 -5 -4 ------- Run | Yrd Mat Min Mat Min Exi Min Mat Gar Fac Fac Fac Fac Slots Evolved 12 | . . . 2 . . . 2 . 2 2 2 2 Power 1 | . . . . . . . . . . 1 . . Propulsion 3 | . . . 1 . . . . . 1 . . 1 Utility 8 | . . . 1 . . . 2 . 1 1 2 1 Weapon . | . . . . . . . . . . . . . Parts Attached 94 | 7 9 5 3 1 1 . 5 4 14 16 8 21 Power 11 | 1 1 . 1 . . . 1 . . 4 . 3 Engine 6 | 1 1 . 1 . . . 1 . . 2 . . Core 3 | . . . . . . . . . . 2 . 1 Reactor 2 | . . . . . . . . . . . . 2 Propulsion 24 | 3 2 3 . . . . 1 1 4 4 1 5 Treads 6 | . 2 . . . . . . 1 1 . . 2 Leg . | . . . . . . . . . . . . . Wheel 18 | 3 . 3 . . . . 1 . 3 4 1 3 Hover . | . . . . . . . . . . . . . Flight . | . . . . . . . . . . . . . Utility 36 | 1 4 . 1 . 1 . 2 . 7 4 7 9 Device 17 | . 1 . . . . . 1 . 4 2 5 4 Storage 5 | 1 2 . . . . . . . 1 . . 1 Processor 5 | . . . . . . . . . 2 1 . 2 Hackware . | . . . . . . . . . . . . . Protection 9 | . 1 . 1 . 1 . 1 . . 1 2 2 Artifact . | . . . . . . . . . . . . . Weapon 23 | 2 2 2 1 1 . . 1 3 3 4 . 4 Energy Gun 5 | 1 1 1 . . . . . . 2 . . . Energy Cannon 4 | . . . . . . . . . 1 2 . 1 Ballistic Gun 1 | 1 . . . . . . . . . . . . Ballistic Cannon 1 | . 1 . . . . . . . . . . . Launcher 8 | . . 1 1 1 . . 1 1 . 1 . 2 Special Weapon 1 | . . . . . . . . 1 . . . . Impact Weapon 2 | . . . . . . . . 1 . 1 . . Slashing Weapon 1 | . . . . . . . . . . . . 1 Piercing Weapon . | . . . . . . . . . . . . . Special Melee Weapon . | . . . . . . . . . . . . . Unidentified Prototypes 7 | . . . . . . . . . . 1 2 4 Parts Lost 23 | . . . . . . . . . 6 4 2 11 Power 5 | . . . . . . . . . . 2 1 2 Propulsion 7 | . . . . . . . . . 2 2 . 3 Utility 7 | . . . . . . . . . 2 . 1 4 Weapon 4 | . . . . . . . . . 2 . . 2 Highest Loss Streak 3 | . . . . . . . . . 3 2 1 3 To Critical Strikes . | . . . . . . . . . . . . . Average Backups 17 | 2 10 18 18 20 20 20 19 19 19 17 18 17 Power 1 | . 1 2 1 1 1 1 1 2 2 1 2 1 Propulsion 2 | 1 4 4 4 5 5 5 4 4 3 1 1 . Utility 8 | . 3 6 7 8 8 9 8 9 9 10 9 10 Weapon 4 | . 2 5 5 5 4 4 3 4 4 4 4 3 Tool/Special . | . . . . . . . . . . . . . Unused Backups 38 | . 4 4 1 . . . 1 3 2 11 2 10 Power 3 | . 1 . 1 . . . . . . 1 . . Propulsion 4 | . 1 1 . . . . . . . . 1 1 Utility 22 | . 1 3 . . . . 1 2 2 7 1 5 Weapon 8 | . 1 . . . . . . 1 . 3 . 3 Tool/Special 1 | . . . . . . . . . . . . 1 Average Slot Usage (%) 94 | . 96 100 99 100 100 100 96 100 97 93 87 88 Engine 7 | . 14 14 11 11 11 11 9 9 7 8 5 3 Core 1 | . . . . . . . . . . 3 5 3 Treads 5 | . 3 . . . . . . 19 17 . . . Wheel 19 | . 24 28 32 33 33 33 27 7 11 19 17 22 Device 15 | . 1 . . . . . 6 9 19 20 18 24 Storage 7 | . 14 14 11 11 11 11 9 9 7 6 5 5 Processor 6 | . . . . . . . . . 4 13 11 9 Protection 11 | . 9 14 21 22 22 22 25 27 12 5 9 4 Energy Gun 3 | . 4 16 7 . . . . . 8 . . . Energy Cannon 4 | . . . . . . . . . 1 8 10 8 Ballistic Gun 1 | . 14 1 . . . . . . . . . . Launcher 4 | . . 10 14 22 22 22 18 16 2 . . 1 Impact Weapon 1 | . . . . . . . . 1 1 4 . . Peak Build Rating 101 | 6 11 13 17 17 18 18 25 29 41 57 73 101 Average Rating 43 | 4 8 12 15 17 17 18 23 26 36 50 68 78 On Entrance 24 | . 6 11 13 17 17 18 18 25 26 38 56 71 Avg Prop Armor Cover (%) 11 | . . . . . . . . . 12 6 . 11 Naked Turns 49 | . . . . . . . . . . . . 49 Heaviest Build 113 | 12 54 57 65 65 65 65 72 76 74 98 113 108 Greatest Support 150 | 26 40 20 30 30 30 30 30 60 83 50 52 150 Greatest Overweight (x) 6 | . 2 2 2 2 2 2 2 2 6 3 2 4 Average Overweight (x) 1 | . 1 2 2 2 2 2 2 1 1 1 1 1 Largest Inventory Capacity 20 | 8 20 20 20 20 20 20 20 20 20 20 20 20 Average Capacity 19 | 6 14 20 20 20 20 20 20 20 20 20 20 19 Most Carried 20 | 6 18 20 20 20 20 20 20 20 20 20 20 20 Average Carried 18 | 2 10 18 18 20 19 20 19 19 19 19 19 19 Final Capacity 20 | 8 20 20 20 20 20 20 20 20 20 20 20 5 Final Carried 20 | 6 18 20 20 20 20 20 20 20 20 20 20 4 Class Distribution -------------------- 55% | Mutant 21% | Infiltrator-Mutant 15% | Skirmisher 6% | Commander-Mutant Dominant Class ---------------- Mutant | -10/Materials Mutant | -10/Mines Mutant | -9/Materials Mutant | -9/Mines Commander-Mutant | -9/Exiles Commander-Mutant | -8/Mines Commander-Mutant | -8/Materials Mutant | -8/Garrison Mutant | -7/Factory Infiltrator-Mutant | -6/Factory Infiltrator-Mutant | -5/Factory Skirmisher | -4/Factory Resources | -11 -10 -10 -9 -9 -9 -8 -8 -8 -7 -6 -5 -4 ----------- Run | Yrd Mat Min Mat Min Exi Min Mat Gar Fac Fac Fac Fac Matter Collected 3553 | 290 341 293 156 . . 31 100 527 710 175 125 805 Remotely 1186 | . 17 . . . . . . 427 252 . . 490 Salvage Created 4781 | 135 329 79 409 52 . . . 252 1042 1136 259 1088 Parts 204 | 17 22 3 25 4 . . . 9 32 26 10 56 Haulers Intercepted 6 | . 2 . . . . . . . 2 2 . . Recyclers Shooed 4 | . . . . . . . . . . 3 . 1 Parts Field Recycled . | . . . . . . . . . . . . . Retrieved Matter . | . . . . . . . . . . . . . Parts Self-Destructed . | . . . . . . . . . . . . . Prevented . | . . . . . . . . . . . . . Parts Restored . | . . . . . . . . . . . . . Kills | -11 -10 -10 -9 -9 -9 -8 -8 -8 -7 -6 -5 -4 ------- Run | Yrd Mat Min Mat Min Exi Min Mat Gar Fac Fac Fac Fac Combat Hostiles Destroyed 77 | . 9 8 11 2 . . . 8 13 4 3 19 Melee 2 | . . . . . . . . . 1 1 . . Guns 10 | . . 4 1 . . . . . 5 . . . Cannons 23 | . 9 . . . . . . . 3 2 3 6 AOE 33 | . . 4 10 2 . . . 6 . . . 11 Classes Destroyed 15 | 3 5 1 4 . . . . 1 1 . . . Worker 15 | 2 . . 1 2 . . . . 4 1 . 5 Builder 5 | . . . 1 . . . . . . 1 . 3 Tunneler 4 | 2 . . . . . . . . 1 . . 1 Hauler 6 | . 2 . . . . . . . 2 2 . . Recycler 11 | 1 . . 1 . . . . . 2 5 . 2 Operator 2 | . 1 . . . . . . . . . . 1 Watcher 8 | . 1 . . . . . . . 2 1 2 2 Swarmer 11 | . 3 3 . . . . . 1 . . . 4 Grunt 30 | . 6 . 7 2 . . . 4 5 2 . 4 Brawler 1 | . . . 1 . . . . . . . . . Duelist 1 | . . . 1 . . . . . . . . . Sentry 11 | . . . 2 . . . . 4 2 . 1 2 Hunter 2 | . . . . . . . . 1 1 . . . Programmer 18 | . . . . . . . . . 5 2 2 9 Assembled 5 | . . 5 . . . . . . . . . . Thug 2 | . . . . . . . . . . . . 2 Best Kill Streak 13 | 5 6 3 8 4 . . . 4 2 4 1 13 Combat Bots Only 6 | . 4 3 6 2 . . . 4 2 2 1 6 Max Kills in Single Turn 5 | 1 1 2 3 3 . . . 2 1 1 1 5 Gunslinging . | . . . . . . . . . . . . . Exploded 4 | . . 2 3 1 . . . 2 . . . 4 Melee 1 | . . . . . . . . . 1 1 . . Uniques/NPCs Destroyed . | . . . . . . . . . . . . . Combat | -11 -10 -10 -9 -9 -9 -8 -8 -8 -7 -6 -5 -4 -------- Run | Yrd Mat Min Mat Min Exi Min Mat Gar Fac Fac Fac Fac Hostile Shots Fired 600 | . 27 19 21 1 . 1 . 39 166 108 25 193 Missed 216 | . 6 9 7 1 . 1 . 12 63 41 10 66 Hits 384 | . 21 10 14 . . . . 27 103 67 15 127 Projectile 384 | . 21 10 14 . . . . 27 103 67 15 127 Critical Strikes 11 | . . . 1 . . . . 1 2 1 . 6 Actively Blocked 5 | . . . . . . . . . . . . 5 Part Disruptions 2 | . . . . . . . . . . . . 2 Damage Taken 8000 | . 259 211 208 . . 27 . 567 1267 663 291 4507 Core 1622 | . 47 63 27 . . 17 . 52 127 72 58 1159 Absorbed by Shields . | . . . . . . . . . . . . . Ignored by Resistances 72 | . . . . . . . . . . 72 . . Core Remaining (%) 85 | 100 . 56 . . . 89 . 90 81 91 94 . Volleys Fired 329 | 20 44 15 16 2 . . . 12 58 46 22 94 Largest 2 | 2 2 2 2 2 . . . 2 2 2 2 2 Hottest 210 | 60 50 112 89 66 . . . 76 160 165 165 210 Shots Fired 503 | 38 88 28 29 4 . . . 23 96 52 29 116 Gun 188 | 38 44 21 10 . . . . . 75 . . . Cannon 236 | . 44 . . . . . . . 21 52 29 90 Launcher 79 | . . 7 19 4 . . . 23 . . . 26 Special . | . . . . . . . . . . . . . Kinetic 110 | 20 88 2 . . . . . . . . . . Thermal 281 | 18 . 19 10 . . . . . 96 46 23 69 Explosive 75 | . . 7 19 4 . . . 21 . . . 24 Electromagnetic 37 | . . . . . . . . 2 . 6 6 23 Robot Hit Streak 18 | 6 12 4 6 6 . . . 11 18 11 6 14 Robot Miss Streak 16 | 4 4 4 3 1 . . . 2 3 3 1 16 Penetration Max . | . . . . . . . . . . . . . Secondary Targets . | . . . . . . . . . . . . . Shots Hit Robots 332 | 22 56 14 18 2 . . . 15 87 48 16 54 Core Hits 250 | 7 22 13 27 6 . . . 21 25 11 7 111 Critical Kills 4 | . . . . . . . . . 1 1 . 2 Critical Parts Destroyed 16 | . 1 . . . . . . 1 10 2 2 . Critical Strikes 30 | . 3 1 . . . . . 1 17 3 2 3 Burn 7 | . . 1 . . . . . . 6 . . . Meltdown 4 | . . . . . . . . . 1 1 . 2 Destroy 1 | . 1 . . . . . . . . . . . Blast 2 | . 2 . . . . . . . . . . . Corrupt 1 | . . . . . . . . . . . . 1 Smash 15 | . . . . . . . . 1 10 2 2 . Melee Attacks 73 | . . . . . . . . 6 25 32 8 2 Impact 73 | . . . . . . . . 6 25 32 8 2 Slashing . | . . . . . . . . . . . . . Piercing . | . . . . . . . . . . . . . Sneak Attacks 12 | . . . . . . . . . 4 8 . . Combat Hostiles . | . . . . . . . . . . . . . Follow-up Attacks . | . . . . . . . . . . . . . Damage Inflicted 12907 | 221 811 335 1095 282 . . . 710 2633 2021 650 4149 Guns 1820 | 221 228 177 60 . . . . . 1134 . . . Cannons 3638 | . 583 . . . . . . . 378 1092 370 1215 Explosions 5043 | . . 158 1035 282 . . . 590 . 45 . 2933 Melee 2358 | . . . . . . . . 120 1074 884 280 . Ramming 48 | . . . . . . . . . 47 . . 1 Kinetic 892 | 81 811 . . . . . . . . . . . Thermal 4182 | 140 . 177 60 . . . . . 1512 968 151 1174 Explosive 4709 | . . 158 1035 282 . . . 515 . . . 2719 Electromagnetic 718 | . . . . . . . . 75 . 169 219 255 Impact 2358 | . . . . . . . . 120 1074 884 280 . Slashing . | . . . . . . . . . . . . . Piercing . | . . . . . . . . . . . . . Highest Corruption 36 | . 1 1 . . . . . . 4 . 3 36 Average Corruption 4 | . 1 1 . . . . . . 2 . 2 14 Corruption Purged . | . . . . . . . . . . . . . Corruption Blocked . | . . . . . . . . . . . . . Effects 75 | . 2 9 . . . . . . 18 . 13 33 Message Errors 21 | . 1 3 . . . . . . 6 . 3 8 Matter Fused 17 | . . 2 . . . . . . 6 . 2 7 Heat Flow Errors 5 | . . . . . . . . . . . 1 4 Energy Discharges 11 | . . 1 . . . . . . 4 . 3 3 Parts Rejected 1 | . . . . . . . . . . . . 1 Parts Fused 1 | . . . . . . . . . . . 1 . Data Loss (minor) 5 | . . 1 . . . . . . 1 . 2 1 Misfires 5 | . . . . . . . . . 1 . 1 3 Alerts 3 | . 1 1 . . . . . . . . . 1 Misdirections 4 | . . . . . . . . . . . . 4 Weapon Failures 2 | . . 1 . . . . . . . . . 1 Overload Shots 1 | . . . . . . . . . . . . 1 Overflow Damage 1592 | . . . 10 4 . . . 51 788 465 123 151 Projectiles 149 | . . . . . . . . . 4 97 21 27 Explosions 138 | . . . 10 4 . . . . . . . 124 Melee 1305 | . . . . . . . . 51 784 368 102 . Knockbacks 15 | . 1 . . . . . . 2 3 5 4 . Impact 14 | . . . . . . . . 2 3 5 4 . Kinetic 1 | . 1 . . . . . . . . . . . Secondary . | . . . . . . . . . . . . . Self-Inflicted Damage 1360 | . . 83 20 . . . . 142 73 26 . 1016 Shots 55 | . . 2 1 . . . . 10 1 1 . 40 Rammed 6 | . . . . . . . . . 4 . . 2 Targets Rammed 6 | . . . . . . . . . 4 . . 2 Kicked . | . . . . . . . . . . . . . Crushed . | . . . . . . . . . . . . . Highest Temperature 363 | 80 197 141 321 60 . . . 195 363 270 192 358 Average Temperature 76 | 48 49 61 115 33 . . . 85 98 74 67 75 Received Heat Transfer 906 | . 117 . 102 . . . . 156 246 156 9 120 Effects 1 | . . . . . . . . . 1 . . . Energy Bleed 1 | . . . . . . . . . 1 . . . Siege Activations . | . . . . . . . . . . . . . Martial Activations . | . . . . . . . . . . . . . Shielding Activations . | . . . . . . . . . . . . . Robots Disrupted . | . . . . . . . . . . . . . Combat Hostiles . | . . . . . . . . . . . . . Robots Corrupted 10 | . . . . . . . . 2 5 3 . . Combat Hostiles 5 | . . . . . . . . 2 3 . . . Parts Fried 17 | . . . . . . . . 1 4 11 1 . Impact Corruptions 40 | . . . . . . . . 2 24 9 5 . Robots Melted 4 | . . . . . . . . . 1 1 . 2 Combat Hostiles 4 | . . . . . . . . . 1 1 . 2 Parts Melted 21 | . . . . . . . . . 12 2 . 7 Heat Transferred 7609 | 325 . 518 148 . . . . . 3500 1518 200 1400 Parts Sabotaged . | . . . . . . . . . . . . . Parts Stolen . | . . . . . . . . . . . . . Parts Stripped . | . . . . . . . . . . . . . Power Chain Reactions . | . . . . . . . . . . . . . Alert | -11 -10 -10 -9 -9 -9 -8 -8 -8 -7 -6 -5 -4 ------- Run | Yrd Mat Min Mat Min Exi Min Mat Gar Fac Fac Fac Fac Maximum Alert Level 4 | . . . 1 . . . . 1 . . . 4 Low Security (%) 87 | 100 100 100 68 100 . 100 100 20 100 100 100 62 Level 1 8 | . . . 31 . . . . 79 . . . 19 Level 2 . | . . . . . . . . . . . . 4 Level 3 1 | . . . . . . . . . . . . 10 Level 4 . | . . . . . . . . . . . . 3 Level 5 . | . . . . . . . . . . . . . High Security . | . . . . . . . . . . . . . Max Security . | . . . . . . . . . . . . . Peak Influence 1249 | 15 95 82 297 163 . 113 20 377 197 90 41 1249 Initial 197 | . . . . 109 . . 20 . 197 90 19 . Average 93 | 2 31 13 110 119 . 84 5 265 84 22 6 236 Influence Increases 4222 | 25 306 143 451 74 . 113 . 397 607 298 177 1631 Destroy 0b10 Robot/C 1600 | . 180 60 220 40 . 80 . 240 260 80 60 380 Destroy 0b10 Robot/NC 255 | 25 20 . 15 10 . . . . 55 50 10 70 Destroy Leader 388 | . 46 10 60 10 . 10 . 10 88 36 24 94 Allied During Kill 47 | . . . . . . 23 . 23 1 . . . Successful Hack 140 | . 29 . . . . . . . 24 49 14 24 Disable Machine 495 | . 15 15 45 . . . . 15 120 60 45 180 Destroy Structure 1147 | . 1 58 96 14 . . . 109 44 23 24 778 Partial Spotted 15 | . . . . . . . . . . . . 15 Lose Combat Pursuer 135 | . 15 . 15 . . . . . 15 . . 90 Influence Decreases 2973 | 25 306 143 170 202 153 60 53 20 799 443 217 382 Entered New Map 654 | . . . . 172 153 . 33 . 180 95 21 . Time Decay 2089 | 25 306 143 170 30 . 60 20 . 559 318 186 272 Lost Part 210 | . . . . . . . . . 60 30 10 110 Lost Ally 20 | . . . . . . . . 20 . . . . Squads Dispatched 20 | . 1 . . . . . . . 6 3 2 8 Investigation 1 | . . . . . . . . . . . . 1 Extermination 12 | . . . . . . . . . 4 2 2 4 Reinforcement 5 | . 1 . . . . . . . 2 1 . 1 Assault 2 | . . . . . . . . . . . . 2 Garrison . | . . . . . . . . . . . . . Intercept . | . . . . . . . . . . . . . Searches Triggered . | . . . . . . . . . . . . . Construction Impeded . | . . . . . . . . . . . . . Haulers Reinforced 2 | . . . . . . . . . 2 . . . Active Scanning Responses . | . . . . . . . . . . . . . Cargo Convoy Interrupts . | . . . . . . . . . . . . . Stealth | -11 -10 -10 -9 -9 -9 -8 -8 -8 -7 -6 -5 -4 --------- Run | Yrd Mat Min Mat Min Exi Min Mat Gar Fac Fac Fac Fac Distress Signals 11 | . 2 . 1 . . . . . 2 4 1 1 Communications Jammed 89 | . . . . . . . . . 49 12 . 28 Distress Signals 87 | . . . . . . . . . 48 12 . 27 Times Spotted 171 | . 17 8 17 1 . 4 . 11 28 30 10 45 Peak Tracking Total 18 | . 2 3 5 1 . 4 . 5 4 5 5 18 Tactical Retreats 20 | . 1 . 1 . . . . . 1 10 3 4 ECM-based Alert Blocks 25 | . . . . . . . . . . 19 6 . Traps | -11 -10 -10 -9 -9 -9 -8 -8 -8 -7 -6 -5 -4 ------- Run | Yrd Mat Min Mat Min Exi Min Mat Gar Fac Fac Fac Fac Traps Triggered 12 | . 1 . . . . . . 1 4 4 . 2 Indirectly . | . . . . . . . . . . . . . Trap Hack Attempts . | . . . . . . . . . . . . . Triggered . | . . . . . . . . . . . . . Disarmed . | . . . . . . . . . . . . . Reprogrammed . | . . . . . . . . . . . . . Reused . | . . . . . . . . . . . . . Traps Extracted . | . . . . . . . . . . . . . Installed . | . . . . . . . . . . . . . Triggered . | . . . . . . . . . . . . . Machines | -11 -10 -10 -9 -9 -9 -8 -8 -8 -7 -6 -5 -4 ---------- Run | Yrd Mat Min Mat Min Exi Min Mat Gar Fac Fac Fac Fac Machines Disabled 33 | . 1 1 3 . . . . 1 8 4 3 12 Max in Single Turn 4 | . 1 1 2 . . . . 1 4 1 1 4 Garrison Access 6 | . . . . . . . . . 1 2 1 2 Machines Repaired . | . . . . . . . . . . . . . Machines Dismantled 1 | . . . . . . . . 1 . . . . Machines Sabotaged . | . . . . . . . . . . . . . Overloaded Fab Kills . | . . . . . . . . . . . . . Hacking | -11 -10 -10 -9 -9 -9 -8 -8 -8 -7 -6 -5 -4 --------- Run | Yrd Mat Min Mat Min Exi Min Mat Gar Fac Fac Fac Fac Machines Accessed 36 | . 6 . 4 . 2 . 1 1 7 6 2 7 Terminals 18 | . 6 . 3 . . . . 1 3 2 1 2 Fabricators 2 | . . . . . . . . . 1 . . 1 Repair Stations 2 | . . . . . . . . . 1 . . 1 Recycling Units 1 | . . . . . . . . . . 1 . . Scanalyzers 4 | . . . 1 . . . . . 1 1 . 1 Garrison Access 7 | . . . . . . . 1 . 1 2 1 2 Total Hacks 69 | . 16 . 8 . 7 . 1 1 12 11 2 11 Successful 45 | . 11 . 4 . 7 . 1 . 8 7 2 5 Failed 23 | . 5 . 3 . . . . 1 4 4 . 6 Catastrophic 6 | . . . . . . . . 1 2 . . 3 Database Lockouts 1 | . . . 1 . . . . . . . . . Manual 32 | . 11 . 4 . 2 . . . 4 7 1 3 Terminals 36 | . 16 . 5 . . . . 1 5 5 1 3 Fabricators 3 | . . . . . . . . . 1 . . 2 Repair Stations 5 | . . . . . . . . . 2 . . 3 Recycling Units 2 | . . . . . . . . . . 2 . . Scanalyzers 9 | . . . 3 . . . . . 3 2 . 1 Garrison Access 7 | . . . . . . . 1 . 1 2 1 2 Terminal Hacks 15 | . 8 . . . 7 . . . . . . . Record 6 | . . . . . 6 . . . . . . . Part Schematic 1 | . 1 . . . . . . . . . . . Robot Analysis 4 | . 4 . . . . . . . . . . . Prototype ID Bank 2 | . 2 . . . . . . . . . . . Recall Investigation 1 | . 1 . . . . . . . . . . . Proto ID Catalog 1 | . . . . . 1 . . . . . . . Fabricator Hacks 2 | . . . . . . . . . . . . 2 Load Schematic 1 | . . . . . . . . . . . . 1 Build 1 | . . . . . . . . . . . . 1 Repair Station Hacks 2 | . . . . . . . . . 1 . . 1 Scan Component 2 | . . . . . . . . . 1 . . 1 Recycling Unit Hacks . | . . . . . . . . . . . . . Scanalyzer 5 | . . . 1 . . . . . 3 1 . . Retrieve Study 5 | . . . 1 . . . . . 3 1 . . Garrison Access Hacks 7 | . . . . . . . 1 . 1 2 1 2 Unlock Access 1 | . . . . . . . 1 . . . . . Seal Access 6 | . . . . . . . . . 1 2 1 2 Unauthorized Hacks 14 | . 3 . 3 . . . . . 3 4 1 . Terminals 11 | . 3 . 3 . . . . . 2 2 1 . Botnet 11 | . 3 . 3 . . . . . 2 2 1 . Fabricators 1 | . . . . . . . . . 1 . . . Report 1 | . . . . . . . . . 1 . . . Repair Stations . | . . . . . . . . . . . . . Recycling Units 2 | . . . . . . . . . . 2 . . Recyclers 1 | . . . . . . . . . . 1 . . Mask 1 | . . . . . . . . . . 1 . . Scanalyzers . | . . . . . . . . . . . . . Garrison Access . | . . . . . . . . . . . . . Data Cores Recovered 1 | . 1 . . . . . . . . . . . Used . | . . . . . . . . . . . . . Hacking Detections 24 | . 6 . 3 . . . . 1 4 4 1 5 Full Trace Events 2 | . 1 . . . . . . . . . . 1 Feedback Events . | . . . . . . . . . . . . . Feedback Blocked . | . . . . . . . . . . . . . Robot Schematics Acquired . | . . . . . . . . . . . . . Robots Built . | . . . . . . . . . . . . . Authchips . | . . . . . . . . . . . . . Time . | . . . . . . . . . . . . . Total Robot Build Rating . | . . . . . . . . . . . . . Part Schematics Acquired 1 | . 1 . . . . . . . . . . . Parts Built 2 | . . . . . . . . . . . . 2 Authchips . | . . . . . . . . . . . . . Time 25 | . . . . . . . . . . . . 25 Total Part Build Rating 2 | . . . . . . . . . . . . 2 Part Studies Acquired 5 | . . . 1 . . . . . 3 1 . . Parts Repaired . | . . . . . . . . . . . . . Time . | . . . . . . . . . . . . . Parts Recycled . | . . . . . . . . . . . . . Recycled Matter . | . . . . . . . . . . . . . Retrieved Matter . | . . . . . . . . . . . . . Retrieved Components . | . . . . . . . . . . . . . Parts Scanalyzed . | . . . . . . . . . . . . . Part Schematics Acquired . | . . . . . . . . . . . . . Parts Damaged . | . . . . . . . . . . . . . Bothacking | -11 -10 -10 -9 -9 -9 -8 -8 -8 -7 -6 -5 -4 ------------ Run | Yrd Mat Min Mat Min Exi Min Mat Gar Fac Fac Fac Fac Used RIF Installer 1 | . . . . . . . . 1 . . . . Robots Hacked . | . . . . . . . . . . . . . Non-combat . | . . . . . . . . . . . . . Combat . | . . . . . . . . . . . . . Robot Hacks Applied . | . . . . . . . . . . . . . Relay Couplers Released . | . . . . . . . . . . . . . Fabnet Peak Effective % . | . . . . . . . . . . . . . Robots Rewired 7 | . . . . . 5 . . 2 . . . . Allies Hacked . | . . . . . . . . . . . . . Hacks Repelled . | . . . . . . . . . . . . . Allies | -11 -10 -10 -9 -9 -9 -8 -8 -8 -7 -6 -5 -4 -------- Run | Yrd Mat Min Mat Min Exi Min Mat Gar Fac Fac Fac Fac Total Allies 7 | . . . . . 5 . . 2 . . . . Largest Group 5 | . . . . . 5 5 5 5 2 . . . Highest-Rated Group 62 | . . . . . 53 53 53 62 62 . . . Highest-Rated Ally 31 | . . . . . 21 21 21 31 31 . . . Total Orders 2 | . . . . . . . . 2 . . . . STAY 1 | . . . . . . . . 1 . . . . FOLLOW 1 | . . . . . . . . 1 . . . . Ally Attacks 66 | . . . . . . 11 . 49 6 . . . Total Damage 764 | . . . . . . 91 . 590 83 . . . Kills 9 | . . . . . . 4 . 5 . . . . Allies Corrupted . | . . . . . . . . . . . . . Allies Melted . | . . . . . . . . . . . . . Intel | -11 -10 -10 -9 -9 -9 -8 -8 -8 -7 -6 -5 -4 ------- Run | Yrd Mat Min Mat Min Exi Min Mat Gar Fac Fac Fac Fac Active Infowar (turns) 7786 | . . . . . . . . . 2458 2100 1206 2022 Sensors 7092 | . . . . . . . . . 2153 2100 1206 1633 IFF 59 | . . . . . . . . . . . 59 . Terrain 2173 | . . . . . . . . . . . 151 2022 Jamming 7258 | . . . . . . . . . 2029 2100 1206 1923 ECM 2515 | . . . . . . . . . . 1952 563 . Robot Analysis Total 4 | . 4 . . . . . . . . . . . Derelict Logs Recovered 2 | . . 2 . . . . . . . . . . Drone Launches . | . . . . . . . . . . . . . Drone Recoveries . | . . . . . . . . . . . . . Exploration | -11 -10 -10 -9 -9 -9 -8 -8 -8 -7 -6 -5 -4 ------------- Run | Yrd Mat Min Mat Min Exi Min Mat Gar Fac Fac Fac Fac Turns Passed 11825 | 144 888 669 371 66 610 120 111 603 2860 2100 1206 2077 Spaces Moved 7829 | 85 702 503 291 60 585 89 89 277 1551 1440 785 1372 Core 96 | 4 . . . . . . . . . . . 92 Treads 639 | . 52 . . . . . . 153 425 . . 9 Legs . | . . . . . . . . . . . . . Wheels 7094 | 81 650 503 291 60 585 89 89 124 1126 1440 785 1271 Hover . | . . . . . . . . . . . . . Flight . | . . . . . . . . . . . . . Fastest Speed 50 | 50 80 110 100 100 100 100 100 100 91 91 98 50 Average Speed 110 | 85 102 110 102 100 100 100 100 177 127 101 107 103 Slowest Speed 280 | 90 160 110 110 100 100 100 100 240 280 125 113 160 Overloaded Moves . | . . . . . . . . . . . . . Propulsion Burnouts . | . . . . . . . . . . . . . Robots Hopped . | . . . . . . . . . . . . . Potential Cave-ins 13 | . . . . . . . . . . . . 13 Cave-ins Triggered 2 | . . . . . . . . . . . . 2 Exploration Rate (%) 37 | 4 90 71 25 17 93 31 7 36 27 32 18 32 Regions Visited 12 Branch Regions 4 Pre-discovered Areas 2 | . . 1 . . 1 . . . . . . . Known Exits Taken 4 | . . . . . . . 1 . 1 1 1 . Unknown Exits Taken 7 | 1 1 1 1 1 1 1 . . . . . . Scrap Searched 1 | . . 1 . . . . . . . . . . Spaces Dug 120 | . . . . . . . . 2 6 18 11 83 Terrain Destroyed 949 | . . 70 106 28 . . . 127 43 22 16 537 Melee 27 | . . . . . . . . 2 6 17 . 2 Projectile 62 | . . . . . . . . . . 5 16 41 AOE 860 | . . 70 106 28 . . . 125 37 . . 494 Terrain Rammed . | . . . . . . . . . . . . . Walls Destroyed . | . . . . . . . . . . . . . Machines Disabled . | . . . . . . . . . . . . . Actions | -11 -10 -10 -9 -9 -9 -8 -8 -8 -7 -6 -5 -4 --------- Run | Yrd Mat Min Mat Min Exi Min Mat Gar Fac Fac Fac Fac Total 10323 | 118 793 592 336 63 610 120 117 340 2273 1970 1099 1892 Wait 1695 | . 8 51 19 . 7 32 8 14 564 376 263 353 Move 7816 | 84 701 502 290 59 584 88 89 276 1550 1439 784 1370 Hop . | . . . . . . . . . . . . . Pick Up 102 | 6 19 6 4 . 2 . 8 4 14 18 5 16 Fast Attach 23 | 6 1 . . . . . . . 6 3 2 5 Attach 37 | . 1 1 2 . . . 2 . 8 5 2 16 Detach 8 | . 1 1 . . . . . . . . . 6 Swap 103 | 1 9 9 2 1 1 . 3 9 34 13 9 12 Drop 84 | 1 9 7 3 1 2 . 7 4 10 22 4 14 Fire 329 | 20 44 15 16 2 . . . 12 58 46 22 94 Melee 73 | . . . . . . . . 6 25 32 8 2 Ram 6 | . . . . . . . . . 4 . . 2 Kick . | . . . . . . . . . . . . . Crush . | . . . . . . . . . . . . . Escape Stasis 20 | . . . . . . . . 2 . 16 . 2 Rewire 19 | . . . . . 14 . . 5 . . . . Trap . | . . . . . . . . . . . . . Miscellaneous 8 | . . . . . . . . 8 . . . . Route ------- -11/Scrapyard -10/Materials (discovered 4 exits: *Mat x3 / [*Min]) -10/Mines -9/Materials (discovered 2 exits: [*Min x2]) -9/Mines -9/Exiles -8/Mines -8/Materials -8/Garrison -7/Factory (discovered 3 exits: *Fac / [*Sto x2]) -6/Factory (discovered 2 exits: *Fac / *Low) -5/Factory -4/Factory History --------- Turn | Location | Event 17 | -11/Scrapyard | Discovered new exit (range 15) 145 | -11/Scrapyard | Entered Materials 360 | -10/Materials | Build established: Mutant 493 | -10/Materials | Discovered new exit (range 15) 805 | -10/Materials | Discovered new exit (range 14) 923 | -10/Materials | Discovered new exit (range 16) 993 | -10/Materials | Discovered new exit (range 15) 1033 | -10/Materials | Entered Mines 1086 | -10/Mines | Met a Derelict bent on vengeance 1087 | -10/Mines | Learned Materials stockpile data 1160 | -10/Mines | Assembled infested the area 1161 | -10/Mines | Learned location of Zion (-7) 1165 | -10/Mines | Assisted by a Guerilla fighting off Assembled 1683 | -10/Mines | Discovered new exit (range 16) 1702 | -10/Mines | Entered Materials 1702 | -9/Materials | Evolved 2 slots: Propulsion x1, Utility x1 1702 | -9/Materials | Discovered new exit (range 8) 1811 | -9/Materials | Central database locked down 2068 | -9/Materials | Discovered new exit (range 6) 2073 | -9/Materials | Entered Mines 2104 | -9/Mines | Received a Rocket Launcher from a helpful Derelict 2134 | -9/Mines | Deemed a non-threat by the Exiles lab entrance 2135 | -9/Mines | Discovered new exit (range 5) 2139 | -9/Mines | Entered Exiles 2139 | -9/Exiles | Found Exiles lab destroyed 2398 | -9/Exiles | Opened EX-Vault 2404 | -9/Exiles | Found PSU Rigger 2575 | -9/Exiles | Build established: Commander-Mutant 2728 | -9/Exiles | Discovered new exit (range 14) 2749 | -9/Exiles | Entered Mines 2749 | -8/Mines | Accompanied by 5 allies 2821 | -8/Mines | Discovered new exit (range 15) 2869 | -8/Mines | Entered Materials 2869 | -8/Materials | Accompanied by 5 allies 2869 | -8/Materials | Evolved 2 slots: Utility x2 2972 | -8/Materials | Identified exit to Garrison 2980 | -8/Materials | Entered Garrison 2980 | -8/Garrison | Accompanied by 5 allies 3016 | -8/Garrison | Triggered checkpoint 3128 | -8/Garrison | Lost 4 allies 3366 | -8/Garrison | Triggered checkpoint 3385 | -8/Garrison | Build established: Mutant 3483 | -8/Garrison | Discovered new exit (range 12) 3502 | -8/Garrison | Installed Relay Interface Framework 3583 | -8/Garrison | Entered Factory 3583 | -7/Factory | Accompanied by 2 allies 3583 | -7/Factory | Evolved 2 slots: Propulsion x1, Utility x1 5306 | -7/Factory | Discovered new exit (range 9) 5383 | -7/Factory | Discovered new exit (range 15) 6189 | -7/Factory | Lost 3 parts (2n1w) 6436 | -7/Factory | Discovered new exit (range 8) 6441 | -7/Factory | Identified exit to Factory 6443 | -7/Factory | Entered another Factory area 6443 | -6/Factory | Evolved 2 slots: Power x1, Utility x1 6886 | -6/Factory | Build established: Infiltrator-Mutant 8245 | -6/Factory | Discovered new exit (range 8) 8264 | -6/Factory | Identified exit to Factory 8428 | -6/Factory | Discovered new exit (range 7) 8433 | -6/Factory | Identified exit to Lower Caves 8486 | -6/Factory | Found Prototype Launcher 8486 | -6/Factory | Identified Scatter Rocket Array 8543 | -6/Factory | Entered another Factory area 8543 | -5/Factory | Evolved 2 slots: Utility x2 9475 | -5/Factory | Build established: Mutant 9729 | -5/Factory | Discovered new exit (range 11) 9743 | -5/Factory | Identified exit to Factory 9749 | -5/Factory | Entered another Factory area 9749 | -4/Factory | Evolved 2 slots: Propulsion x1, Utility x1 9890 | -4/Factory | Build established: Skirmisher 10307 | -4/Factory | Fabricated ECM Suite (x2) 11095 | -4/Factory | Lost 3 parts (1p1u1w) 11184 | -4/Factory | System corruption reached 10% 11251 | -4/Factory | Spotted B-86 Titan 11382 | -4/Factory | Crushed by falling debris 11413 | -4/Factory | Lost 3 parts (1n1u1w) 11499 | -4/Factory | First assault squad dispatched 11564 | -4/Factory | Found Prototype Launcher 11564 | -4/Factory | Identified Com. Tesla Bomb Launcher 11641 | -4/Factory | Crushed by falling debris 11642 | -4/Factory | System corruption reached 30% 11674 | -4/Factory | Build established: Mutant 11702 | -4/Factory | Allied Derelicts emerged from ambush trap array 11771 | -4/Factory | Released all parts (17) 11798 | -4/Factory | Core integrity fell below 50% 11823 | -4/Factory | Core integrity fell below 20% 11826 | -4/Factory | Destroyed by S-27 Virus with Autogun Last Messages --------------- 11772_ Knocked back. 11773_ Acquired Imp. Plasma Cutter. 11773_ U-05 Engineer lays Concrete. 11773_ R-10 Processor collects Scatter Rocket Array. 11774_ Penetrated by Slug. 11774_ Knocked back. 11775_ U-05 Engineer lays Concrete. 11776_ R-10 Processor collects Transmission Jammer. 11779_ The unstable cave ceiling collapses. 11784_ System corrupted: Energy discharge (-29). 11792_ System corrupted: Cld. Proton Cannon failed to cycle. 11794_ Assembly Bed disabled. 11797_ Slammed into S-27 Virus. 11797_ Destabilizing: System corrupted (+1). 11800_ System corrupted: Matter fused (-9). 11816_ Pressure Siphon disabled. 11817_ System corrupted: Matter fused (-7). 11822_ Pressure Siphon disabled. 11823_ Triggered Hellfire Trap. 11823_ An explosion rips through the floor. Map ----- +----------------------------------------------------+ | #?????????????????????????????????????? ???? ?? | | ##???????????????????????????????????????????????? | | ????????#?????????????????????????????????? ?## ## | | ##????????????????????????????????????? ?????+ | | ???????????????????????????????????????##### | | +####????????????????????????????????????????????# | | # ?? ?????????????????????????????? ?????????# | | ?????????????????????????????????????? ??????# | | ???????????????????????????????????????#??????# | | ??????????????????????????????????????????????#??# | | ??? ?? ?????????????????????????????????????????## | | #????????????????????????????????????????????????# | | ?????????????????????????????????/#??????????????? | | ""???????????????????????????"? ???????????????? | | ????????????????????????????[[" ???????????????? | | ???????????????????????????"[[ ???????????????? | | ???????????????????????????"[[ ""??????????????#? | | ??"???????????????####+####""" "#? ?????????"???? | | ??????????????????# #" "# ????????????? | | ??????????????????# / ?????????????? | | ??????????????????# / ??????????????? | | ??????????????## s ??????????????? | | ???????????????# " "#???????????????? | | ? ???????????????# """ "##??????????????? | | +################# #"[[ """ ???????????? | | !! @ "[[ ?????????? | | ! #"[[" ?????????? | | #""""" ????????????? | | ###?#####g###????????????? | | s #????????????????????????? | | s ps #????????????????????????? | | """ """ """ %"" #????????????????????????? | | """ """ """s""" #????????????????????????? | | """ """ """ """ #????????????????????????? | | """ %"" """ """ #????????????????????????? | | #????????????????????????? | | #????????????????????????? | | ############+#########????????????????????????? | | #??#??????? ????????????????????????????????? | | ##???#????? ????????????????????????????????? | | #???#????? ???????????????????????????????? | | ##??#?? ?? ???????????????????????????????? | | ###?????? ?????????????????????????????? | | ######? ] ??????????????????????????????? | | #?#?#?? ?????????????????????????????? | | ##?##?#? ?????????????????????????????? | | #???#?# ????????????????????????????? | | #?#??## ????????????????????????????? | | #??#??# ! #??????????????????????????? | | ####### ] #??????????????????????????? | +----------------------------------------------------+ Best States ------------- Heat Dissipation 70 Energy Generation 33 Energy Capacity 1080 Matter Stores 300 Matter Capacity 550 Sight Range 16 Robot Scan Range 16 Terrain Scan Range 20 Terrain Scan Density 210 ECM Strength 1 Jamming Range 12 Armor Coverage 825 Resistance: KI 30 Evasion (%) 50 Targeting Accuracy 8 Recoil Reduction 4 Energy Filtering 50 Item Schematics ----------------- ECM Suite | -10/Materials | Hacked Robot Schematics ------------------ None Fabricated ------------ ECM Suite | x2 | -4/Factory Repaired ---------- Nothing Studied --------- Wheel | -9/Materials | Hacked Lgt. Treads | -7/Factory | Hacked Imp. Treads | -7/Factory | Hacked Power Maul | -7/Factory | Hacked Arm. Huge Wheel | -6/Factory | Hacked Alien Tech Used ----------------- None Achievements -------------- None Challenges ------------ None Game ------ Seed CarbideDefenseMiniperforator Manual? 0 Play Time 01:57:35 Cumulative 116.6 hours Start 2026.01.12 @ 11:30:21 End 2026.01.12 @ 18:46:54 Sessions 9 Manual Loads 0 Difficulty Rogue Special Mode None Game No. 122 Rogue 122 Adventurer 0 Explorer 0 Win Type - Total 0 Types 0/0/0/0/0/0/0/0/0/0 Lore% 63 Gallery% 49 Achievement% 40 Wizard Run 0 Options --------- Layout 0 ASCII 0 Keyboard 1 Movement Vi Keybinds 0 Fullscreen 2 Font 18/SmallcapsGlow Map View 76x50 Zoom Use 0% Tactical HUD 1 Map Filters NONE Filters NONE Steam 1 RUN: 27a5660c-5fea-4232-8e37-2e9ddb00c68a